bitfinex/quotes_BTCUSD_20250623
["timestamp","ask_amount","ask_price","bid_price","bid_amount"]
[1750668303822,8.21978194,102000.0,101990.0,0.060584]
[1750668304226,8.21978194,102000.0,101990.0,0.093084]
[1750668306572,8.23810008,102000.0,101990.0,0.093084]
[1750668308730,8.24726,102000.0,101990.0,0.093084]
[1750668308979,8.23810008,102000.0,101990.0,0.093084]
[1750668309195,8.21978194,102000.0,101990.0,0.093084]
[1750668312739,8.23810438,102000.0,101990.0,0.093084]
[1750668313693,8.23810438,102000.0,101990.0,0.1023924]
[1750668314113,8.23810438,102000.0,101990.0,0.093084]
[1750668314471,8.2472664,102000.0,101990.0,0.093084]
[1750668314923,8.21978194,102000.0,101990.0,0.093084]
[1750668316706,8.21978194,102000.0,101990.0,0.19338339]
[1750668317802,8.21778194,102000.0,101990.0,0.19338339]
[1750668318374,8.21778194,102000.0,101990.0,0.19538339]
[1750668318579,8.21778194,102000.0,101990.0,0.19938339]
[1750668320964,8.21778194,102000.0,101990.0,0.21932173]
[1750668322216,8.17785721,102000.0,101990.0,0.21932173]
[1750668323278,8.17785721,102000.0,101990.0,0.66440727]
[1750668323486,8.17785721,102000.0,101990.0,0.67894812]
[1750668323699,8.17785721,102000.0,101990.0,0.39286258]
[1750668324600,8.17785721,102000.0,101990.0,0.67894812]
[1750668326050,8.17785721,102000.0,101990.0,0.97844812]
[1750668331739,8.17785721,102000.0,101990.0,0.97840812]
[1750668335262,8.17785721,102000.0,101990.0,1.02840812]
[1750668335930,8.17785721,102000.0,101990.0,1.02640812]
[1750668336522,8.17785721,102000.0,101990.0,1.28731055]
[1750668336950,8.17785721,102000.0,101990.0,1.27350577]
[1750668337188,8.17785721,102000.0,101990.0,1.07740812]
[1750668337596,8.17785721,102000.0,101990.0,0.67138424]
[1750668338047,8.01499722,102000.0,101990.0,0.67138424]
[1750668338489,8.01499722,102000.0,101990.0,0.67938424]
[1750668342532,8.01499722,102000.0,101990.0,0.52042424]
[1750668342740,8.01499722,102000.0,101990.0,0.67934424]
[1750668343139,8.01499722,102000.0,101990.0,0.52042424]
[1750668343476,8.01499722,102000.0,101990.0,0.77964363]
[1750668348888,8.01499722,102000.0,101990.0,1.06554952]
[1750668349630,8.01499722,102000.0,101990.0,0.77964363]
[1750668349834,8.01499722,102000.0,101990.0,1.06554952]
[1750668350937,8.01499722,102000.0,101990.0,1.28125674]
[1750668351137,8.01499722,102000.0,101990.0,1.06554952]
[1750668352294,8.01499722,102000.0,101990.0,1.28125683]
[1750668352504,8.01499722,102000.0,101990.0,1.29106152]
[1750668352907,8.01499722,102000.0,101990.0,1.28125683]
[1750668353487,8.01499722,102000.0,101990.0,1.27145205]
[1750668354135,8.01499722,102000.0,101990.0,1.34106104]
[1750668354341,8.01499722,102000.0,101990.0,1.35086524]
[1750668354596,8.01499722,102000.0,101990.0,1.40086524]
[1750668355057,8.01499722,102000.0,101990.0,1.74086524]
[1750668355223,8.01499722,102000.0,101990.0,1.99086524]
[1750668357632,8.01499722,102000.0,101990.0,1.70495935]
[1750668357771,8.01499722,102000.0,101990.0,1.99086524]
[1750668370052,8.01499722,102000.0,101990.0,2.27677113]
[1750668370710,7.71549722,102000.0,101990.0,2.38017113]
[1750668370925,7.53001371,102000.0,101990.0,2.38017113]
[1750668371912,7.53001371,102000.0,101990.0,2.37517113]
[1750668372339,7.53001371,102000.0,101990.0,2.36717113]
[1750668372540,7.53001371,102000.0,101990.0,2.38517113]
[1750668373161,7.53001371,102000.0,101990.0,2.09926524]
[1750668373370,7.53001371,102000.0,101990.0,2.10926524]
[1750668373597,7.53001371,102000.0,101990.0,1.84694524]
[1750668373803,7.53001371,102000.0,101990.0,2.04754524]
[1750668374005,7.53001371,102000.0,101990.0,2.15094524]
[1750668386502,7.53001371,102000.0,101990.0,2.43648023]
[1750668389288,7.53001371,102000.0,101990.0,2.33308023]
[1750668391185,7.48041758,102000.0,101990.0,2.33308023]
[1750668391986,7.48041758,102000.0,101990.0,1.76163935]
[1750668392191,7.48041758,102000.0,101990.0,2.33308023]
[1750668393579,7.48041758,102000.0,101990.0,1.76163935]
[1750668393818,7.48041758,102000.0,101990.0,2.33308023]
[1750668401770,7.48041758,102000.0,101990.0,1.76163935]
[1750668402003,7.48041758,102000.0,101990.0,2.33308023]
[1750668404904,7.48041758,102000.0,101990.0,2.43648023]
[1750668405095,7.48041758,102000.0,101990.0,2.33308023]
[1750668412556,7.48041758,102000.0,101990.0,2.33296023]
[1750668414050,7.48041758,102000.0,101990.0,1.76151935]
[1750668414261,7.48041758,102000.0,101990.0,2.33296023]
[1750668421051,7.48041758,102000.0,101990.0,2.32315612]
[1750668421266,7.48041758,102000.0,101990.0,1.14292424]
[1750668421483,7.53331758,102000.0,101990.0,1.49386104]
[1750668421691,7.53331758,102000.0,101990.0,1.82958148]
[1750668421899,7.53331758,102000.0,101990.0,1.84412233]
[1750668422532,7.53331758,102000.0,101990.0,1.82612233]
[1750668422783,7.51101758,102000.0,101990.0,1.961031]
[1750668422992,7.48041758,102000.0,101990.0,1.951031]
[1750668423196,7.48041758,102000.0,101990.0,1.96883549]
[1750668423386,7.48041758,102000.0,101990.0,1.97863989]
[1750668423592,7.48041758,102000.0,101990.0,2.01163989]
[1750668424366,7.48041758,102000.0,101990.0,2.02144419]
[1750668425143,7.48041758,102000.0,101990.0,1.992031]
[1750668425368,7.51081758,102000.0,101990.0,1.95903138]
[1750668425569,7.51081758,102000.0,101990.0,1.96883607]
[1750668426852,7.51081758,102000.0,101990.0,1.61350616]
[1750668427036,7.31840382,102000.0,101990.0,1.9492266]
[1750668427567,7.31840382,102000.0,101990.0,1.95903138]
[1750668428195,7.31840382,102000.0,101990.0,1.9492266]
[1750668428402,7.31840382,102000.0,101990.0,1.95903138]
[1750668428611,7.31840382,102000.0,101990.0,1.96883587]
[1750668428839,7.28800382,102000.0,101990.0,1.97864027]
[1750668429047,7.28800382,102000.0,101990.0,1.76835587]
[1750668429252,7.28800382,102000.0,101990.0,1.96875587]
[1750668429572,7.28800382,102000.0,101990.0,1.97856027]
[1750668429975,7.28800382,102000.0,101990.0,1.96875587]
[1750668430183,7.28800382,102000.0,101990.0,1.97856027]
[1750668431215,7.28800382,102000.0,101990.0,2.02076457]
[1750668431424,7.28800382,102000.0,101990.0,2.01096027]
[1750668431663,7.28800382,102000.0,101990.0,2.00115587]
[1750668431876,7.28800382,102000.0,101990.0,2.01096027]
[1750668432084,7.28800382,102000.0,101990.0,2.02076457]
[1750668432294,7.28800382,102000.0,101990.0,2.02076389]
[1750668432711,7.28800382,102000.0,101990.0,2.01095969]
[1750668432929,7.28800382,102000.0,101990.0,2.05356389]
[1750668433142,7.22915702,102000.0,101990.0,2.33928433]
[1750668434012,7.22915702,102000.0,101990.0,2.33128433]
[1750668434443,7.22915702,102000.0,101990.0,2.34119613]
[1750668435349,7.22915702,102000.0,101990.0,2.32619613]
[1750668435794,7.22915702,102000.0,101990.0,2.05851979]
[1750668436659,7.22915702,102000.0,101990.0,2.34419613]
[1750668439163,7.17607819,102000.0,101990.0,2.34419613]
[1750668439392,6.98972156,102000.0,101990.0,2.34419613]
[1750668439606,6.98972156,102000.0,101990.0,2.05851979]
[1750668446860,6.98972156,102000.0,101990.0,2.34419613]
[1750668448065,6.98972156,102000.0,101990.0,2.05851979]
[1750668450844,6.89459312,102000.0,101990.0,2.34419613]
[1750668451060,5.84392029,102000.0,101990.0,2.44759613]
[1750668451269,5.67880161,102000.0,101990.0,2.93539613]
[1750668451489,5.67880161,102000.0,101990.0,2.96039613]
[1750668451715,5.62973327,102000.0,101990.0,2.96039613]
[1750668451921,5.53159659,102000.0,101990.0,2.96039613]
[1750668452133,5.48252825,102000.0,101990.0,2.96039613]
[1750668452347,5.43345991,102000.0,101990.0,2.96039613]
[1750668452560,5.43345991,102000.0,101990.0,3.66039613]
[1750668453633,5.36464615,102000.0,101990.0,3.66039613]
[1750668453842,5.36464615,102000.0,101990.0,3.55699613]
[1750668454218,5.35182931,102000.0,101990.0,3.55699613]
[1750668456625,5.35182931,102000.0,101990.0,3.55687613]
[1750668458038,5.30277007,102000.0,101990.0,3.61687613]
[1750668458243,5.25371083,102000.0,101990.0,3.61687613]
[1750668458459,5.20465159,102000.0,101990.0,3.61687613]
[1750668458873,5.15559235,102000.0,101990.0,3.61687613]
[1750668459133,5.10653311,102000.0,101990.0,3.61687613]
[1750668459360,5.05747387,102000.0,101990.0,3.61687613]
[1750668459736,4.9577517,102000.0,101990.0,3.61687613]
[1750668460079,4.90571519,102000.0,101990.0,3.61687613]
[1750668460510,4.79643283,102000.0,101990.0,3.72027613]
[1750668460780,4.7262258,102000.0,101990.0,3.72027613]
[1750668461011,4.67716656,102000.0,101990.0,3.72009571]
[1750668461516,4.57904808,102000.0,101990.0,3.72009571]
[1750668461646,4.4809296,102000.0,101990.0,3.72009571]
[1750668461858,4.43129878,102000.0,101990.0,3.72009571]
[1750668462062,4.3807936,102000.0,101990.0,3.72009571]
[1750668462263,4.28267512,102000.0,101990.0,3.72009571]
[1750668462511,4.1374436,102000.0,101990.0,3.51981571]
[1750668462663,4.07945371,102000.0,101990.0,3.14888345]
[1750668462869,4.03039447,102000.0,101990.0,3.72005571]
[1750668463127,3.9643065,102000.0,101990.0,3.72005571]
[1750668463358,3.91524726,102000.0,101990.0,3.72005571]
[1750668463566,3.86618802,102000.0,101990.0,3.72005571]
[1750668463778,3.81712878,102000.0,101990.0,3.72005571]
[1750668463980,3.76806954,102000.0,101990.0,3.72005571]
[1750668464417,3.66995106,102000.0,101990.0,3.72005571]
[1750668464639,3.62089182,102000.0,101990.0,3.72005571]
[1750668464841,3.10858737,102000.0,101990.0,2.93275571]
[1750668465050,3.04420276,102000.0,101990.0,2.93275571]
[1750668465253,2.99514352,102000.0,101990.0,2.93275571]
[1750668465470,2.89702504,102000.0,101990.0,2.93275571]
[1750668465676,2.8479658,102000.0,101990.0,2.93275571]
[1750668465904,2.74984732,102000.0,101990.0,2.93275571]
[1750668466084,2.70078808,102000.0,101990.0,2.93275571]
[1750668466285,2.65172884,102000.0,101990.0,2.93275571]
[1750668466488,2.55361026,102000.0,101990.0,2.93275571]
[1750668466728,2.50455097,102000.0,101990.0,2.93275571]
[1750668466946,2.45549168,102000.0,101990.0,2.93275571]
[1750668467153,2.3573731,102000.0,101990.0,2.93275571]
[1750668467350,2.30831381,102000.0,101990.0,2.93275571]
[1750668468773,2.30577689,102000.0,101990.0,2.93275571]
[1750668469857,2.08345949,102000.0,101990.0,2.93275571]
[1750668470610,1.96535949,102000.0,101990.0,3.42055571]
[1750668470861,1.96535949,102000.0,101990.0,2.93275571]
[1750668473388,1.96535949,102000.0,101990.0,2.36158345]
[1750668473594,1.96535949,102000.0,101990.0,2.93275571]
[1750668481338,1.17775144,102000.0,101990.0,3.32025632]
[1750668481541,1.17775144,102000.0,101990.0,3.34570864]
[1750668481747,1.16793959,102000.0,101990.0,3.34570864]
[1750668482086,1.15812774,102000.0,101990.0,3.34570864]
[1750668482304,1.10906846,102000.0,101990.0,3.34570864]
[1750668482491,1.00113805,102000.0,101990.0,3.34570864]
[1750668482727,0.95207877,102000.0,101990.0,3.34570864]
[1750668482944,0.90301949,102000.0,101990.0,3.33570864]
[1750668483200,0.80490093,102000.0,101990.0,3.33570864]
[1750668483423,0.75584165,102000.0,101990.0,3.33570864]
[1750668483669,0.65772309,102000.0,101990.0,3.33270864]
[1750668483876,0.60866381,102000.0,101990.0,3.35770864]
[1750668484089,0.51054525,102000.0,101990.0,3.35770864]
[1750668484328,0.46148597,102000.0,101990.0,3.35770864]
[1750668484531,0.41242669,102000.0,101990.0,3.35770864]
[1750668484722,0.31430813,102000.0,101990.0,3.35770864]
[1750668484864,0.26524885,102000.0,101990.0,3.35770864]
[1750668485067,0.15730817,102000.0,101990.0,3.35770864]
[1750668485305,0.10824889,102000.0,101990.0,3.35770864]
[1750668485446,0.05918961,102000.0,101990.0,2.86990864]
[1750668485646,0.01013033,102000.0,101990.0,2.86990864]
[1750668485847,5e-05,102010.0,102000.0,0.80842987]
[1750668486162,0.03575,102030.0,102020.0,0.93648741]
[1750668486370,0.03575,102030.0,102020.0,1.52257293]
[1750668486749,0.03575,102030.0,102020.0,1.51607119]
[1750668486962,0.03575,102030.0,102020.0,1.54553019]
[1750668487162,0.12654225,102050.0,102040.0,0.20580154]
[1750668487358,0.12663301,102050.0,102040.0,0.50622093]
[1750668487562,0.12663301,102050.0,102040.0,0.51602081]
[1750668487922,0.12663301,102050.0,102040.0,0.54548081]
[1750668488116,0.12663301,102050.0,102040.0,0.56508029]
[1750668488332,0.12663301,102050.0,102040.0,0.59502207]
[1750668488961,0.12663301,102050.0,102040.0,0.59822238]
[1750668489425,0.12663301,102050.0,102040.0,0.60802197]
[1750668489839,0.12663301,102050.0,102040.0,0.60422238]
[1750668490040,0.12663301,102050.0,102040.0,0.61402207]
[1750668490223,0.14333301,102050.0,102040.0,0.62382166]
[1750668490419,0.14333301,102050.0,102040.0,0.65214743]
[1750668491207,0.01679076,102050.0,102040.0,0.70214695]
[1750668491411,0.01679076,102050.0,102040.0,0.70214647]
[1750668495336,0.01679076,102050.0,102040.0,0.68254757]
[1750668496351,0.01679076,102050.0,102040.0,0.70214647]
[1750668497321,9.076e-05,102050.0,102040.0,0.96668732]
[1750668497524,9.076e-05,102050.0,102040.0,1.67277345]
[1750668497732,9.076e-05,102050.0,102040.0,1.70287345]
[1750668500072,9.076e-05,102050.0,102040.0,1.41728732]
[1750668501488,9.076e-05,102050.0,102040.0,1.70287345]
[1750668502159,9.076e-05,102050.0,102040.0,1.41728732]
[1750668502285,9.076e-05,102050.0,102040.0,1.38718732]
[1750668503281,9.076e-05,102050.0,102040.0,1.16746842]
[1750668503498,9.076e-05,102050.0,102040.0,1.34684782]
[1750668504348,0.09379013,102060.0,102050.0,0.60558049]
[1750668504546,0.09379013,102060.0,102050.0,0.86443988]
[1750668504966,0.09379013,102060.0,102050.0,0.9036938]
[1750668506189,0.09379013,102060.0,102050.0,0.9086938]
[1750668506628,0.09379013,102060.0,102050.0,0.89889488]
[1750668506825,0.09379013,102060.0,102050.0,0.90889488]
[1750668507027,0.09379013,102060.0,102050.0,0.9186938]
[1750668507385,0.09379013,102060.0,102050.0,0.90889488]
[1750668508025,0.09379013,102060.0,102050.0,0.89909586]
[1750668508436,0.09379013,102060.0,102050.0,0.73073675]
[1750668508641,0.09379013,102060.0,102050.0,0.94061586]
[1750668509061,0.09379013,102060.0,102050.0,0.93081675]
[1750668509479,0.09379013,102060.0,102050.0,0.94061586]
[1750668509893,0.09379013,102060.0,102050.0,0.95041488]
[1750668510100,0.09379013,102060.0,102050.0,0.94061586]
[1750668510281,0.57106986,102060.0,102050.0,0.94061586]
[1750668510719,0.57106986,102060.0,102050.0,0.95041488]
[1750668510720,0.28553493,102060.0,102050.0,0.95041488]
[1750668511330,0.28553493,102060.0,102050.0,0.9602138]
[1750668511553,0.28553493,102060.0,102050.0,0.95041488]
[1750668511764,0.28553493,102060.0,102050.0,0.9602138]
[1750668512170,0.00405,102070.0,102060.0,0.01454085]
[1750668512376,0.2896312,102070.0,102060.0,0.27340024]
[1750668512968,0.2896312,102070.0,102060.0,0.30285524]
[1750668513818,0.2896312,102070.0,102060.0,0.31085524]
[1750668514282,0.2896312,102070.0,102060.0,0.31385524]
[1750668514498,0.2896312,102070.0,102060.0,0.15529524]
[1750668514704,0.2896312,102070.0,102060.0,0.35537524]
[1750668519771,0.2896312,102070.0,102060.0,0.15529524]
[1750668519971,0.2896312,102070.0,102060.0,0.35533524]
[1750668520175,0.2896312,102070.0,102060.0,0.15529524]
[1750668520617,0.2896312,102070.0,102060.0,0.35529524]
[1750668522428,0.00409627,102070.0,102060.0,0.35529524]
[1750668522687,0.2896312,102070.0,102060.0,0.35529524]
[1750668524587,0.2896312,102070.0,102060.0,0.15529524]
[1750668524812,0.2896312,102070.0,102060.0,0.35529524]
[1750668528411,0.09474244,102070.0,102060.0,0.35529524]
[1750668532571,5e-05,102080.0,102060.0,0.35529524]
[1750668532779,0.28553493,102070.0,102060.0,0.25499585]
[1750668532983,0.28553493,102070.0,102060.0,0.32584024]
[1750668533399,0.28553493,102070.0,102060.0,0.38529524]
[1750668533604,0.28553493,102070.0,102060.0,0.37729524]
[1750668533806,0.28553493,102070.0,102060.0,0.37929524]
[1750668534012,0.28553493,102070.0,102060.0,0.38529524]
[1750668534222,0.28553493,102070.0,102060.0,0.37729524]
[1750668534637,0.28553493,102070.0,102060.0,0.18829524]
[1750668534855,0.28553493,102070.0,102060.0,0.38829524]
[1750668536043,0.28553493,102070.0,102060.0,0.41999524]
[1750668539099,0.28553493,102070.0,102060.0,0.39054024]
[1750668542665,0.07430424,102070.0,102060.0,0.39054024]
[1750668547797,0.28553493,102070.0,102060.0,0.39054024]
[1750668548774,0.28553493,102070.0,102060.0,0.39059579]
[1750668549800,0.00051274,102080.0,102060.0,0.39059579]
[1750668550175,0.00051274,102080.0,102070.0,0.10029939]
[1750668551076,0.00051274,102080.0,102070.0,0.10035494]
[1750668551685,0.00051274,102080.0,102070.0,0.10635494]
[1750668553116,0.00051274,102080.0,102070.0,0.10835494]
[1750668553802,0.00051274,102080.0,102070.0,0.14979494]
[1750668554028,0.00051274,102080.0,102070.0,0.10835494]
[1750668554249,0.00051274,102080.0,102070.0,0.30831494]
[1750668560449,0.00051274,102080.0,102070.0,0.34081494]
[1750668562463,0.00051274,102080.0,102070.0,0.37091494]
[1750668577556,0.00051274,102080.0,102070.0,0.37083494]
[1750668587945,0.00051274,102080.0,102070.0,0.32943494]
[1750668589731,0.00051274,102080.0,102070.0,0.32939494]
[1750668590026,0.00051274,102080.0,102070.0,0.17095494]
[1750668590261,0.00051274,102080.0,102070.0,0.32939494]
[1750668590681,0.00051274,102080.0,102070.0,0.17095494]
[1750668590893,0.00051274,102080.0,102070.0,0.32939494]
[1750668607844,10.0,102100.0,102070.0,0.32939494]
[1750668608059,10.12787291,102100.0,102070.0,0.32939494]
[1750668608265,10.14974513,102100.0,102080.0,0.0306]
[1750668608475,10.14974513,102100.0,102080.0,0.16249939]
[1750668609351,10.14857435,102100.0,102080.0,0.16255494]
[1750668610188,10.14858501,102100.0,102080.0,0.16255494]
[1750668610403,10.04828562,102100.0,102080.0,0.16255494]
[1750668611655,10.04828562,102100.0,102080.0,0.16355494]
[1750668613182,10.04829086,102100.0,102080.0,0.16355494]
[1750668615918,10.03909434,102100.0,102080.0,0.16355494]
[1750668616127,10.04829071,102100.0,102080.0,0.16355494]
[1750668616572,9.99596403,102100.0,102080.0,0.16355494]
[1750668618915,9.995964,102100.0,102080.0,0.16355494]
[1750668619972,9.81582706,102100.0,102080.0,0.16355494]
[1750668620178,9.81582704,102100.0,102080.0,0.16355494]
[1750668621683,9.81582678,102100.0,102080.0,0.16355494]
[1750668624455,9.78823782,102100.0,102080.0,0.16355494]
[1750668624661,9.81582673,102100.0,102080.0,0.16355494]
[1750668627417,9.81582678,102100.0,102080.0,0.16355494]
[1750668627800,9.81582679,102100.0,102080.0,0.16355494]
[1750668629594,9.81582682,102100.0,102080.0,0.16355494]
[1750668630223,9.81582687,102100.0,102080.0,0.16355494]
[1750668632128,9.81582687,102100.0,102090.0,0.0304]
[1750668632338,9.81582687,102100.0,102080.0,0.16545494]
[1750668632545,9.80663049,102100.0,102080.0,0.16545494]
[1750668632751,9.81582694,102100.0,102080.0,0.16545494]
[1750668634056,9.81582708,102100.0,102080.0,0.16545494]
[1750668635141,10.08728063,102100.0,102080.0,0.00105555]
[1750668635355,10.10103196,102100.0,102080.0,0.00105555]
[1750668635583,10.13049196,102100.0,102080.0,0.00105555]
[1750668636055,10.13049593,102100.0,102080.0,0.00105555]
[1750668636267,0.4891,102090.0,102080.0,0.00105555]
[1750668636480,0.61699262,102090.0,102080.0,0.00105555]
[1750668637328,0.61699262,102090.0,102080.0,5.555e-05]
[1750668638190,0.61699262,102090.0,102080.0,0.00405555]
[1750668638805,0.9569844,102090.0,102080.0,0.00405555]
[1750668639716,0.9569844,102090.0,102080.0,0.16605494]
[1750668639946,0.83828952,102090.0,102080.0,0.16605494]
[1750668640168,0.4891,102090.0,102080.0,0.16605494]
[1750668646155,0.4891,102090.0,102080.0,0.06575555]
[1750668646367,0.4891,102090.0,102080.0,0.03445555]
[1750668646765,0.4891,102090.0,102080.0,0.00405555]
[1750668647002,0.58939939,102090.0,102080.0,0.00405555]
[1750668647466,0.61696283,102090.0,102080.0,0.00405555]
[1750668647705,0.72026283,102090.0,102080.0,0.00405555]
[1750668647926,0.74378925,102090.0,102080.0,0.00405555]
[1750668648162,0.95322385,102090.0,102080.0,0.00405555]
[1750668648366,0.95322376,102090.0,102080.0,0.00405555]
[1750668648576,0.94342925,102090.0,102080.0,0.00405555]
[1750668648785,0.84012925,102090.0,102080.0,0.00405555]
[1750668649446,0.81660283,102090.0,102080.0,0.00405555]
[1750668650100,0.81659315,102090.0,102080.0,0.00405555]
[1750668650996,1.15659315,102090.0,102080.0,0.00405555]
[1750668651211,0.66749315,102090.0,102080.0,0.00405555]
[1750668652903,0.63993939,102090.0,102080.0,0.00405555]
[1750668653114,0.66747558,102090.0,102080.0,0.00405555]
[1750668655720,0.64911812,102090.0,102080.0,0.00405555]
[1750668655935,0.66747013,102090.0,102080.0,0.00405555]
[1750668658683,0.77077013,102090.0,102080.0,0.00405555]
[1750668658896,0.66746542,102090.0,102080.0,0.00405555]
[1750668659328,0.56716603,102090.0,102080.0,0.06855555]
[1750668659539,0.54881402,102090.0,102080.0,0.06855555]
[1750668661623,0.56716025,102090.0,102080.0,0.06855555]
[1750668664430,0.56716149,102090.0,102080.0,0.06855555]
[1750668667072,0.56715937,102090.0,102080.0,0.06855555]
[1750668667279,0.56715829,102090.0,102080.0,0.06855555]
[1750668667702,0.56715828,102090.0,102080.0,0.06855555]
[1750668668780,0.64911215,102090.0,102080.0,0.06855555]
[1750668672871,0.63993939,102090.0,102080.0,0.06855555]
[1750668673083,0.64911474,102090.0,102080.0,0.06855555]
[1750668673723,0.66747391,102090.0,102080.0,0.06855555]
[1750668675868,0.66751072,102090.0,102080.0,0.06855555]
[1750668678642,0.6675109,102090.0,102080.0,0.06855555]
[1750668683715,0.66751339,102090.0,102080.0,0.06855555]
[1750668684345,0.66751721,102090.0,102080.0,0.06855555]
[1750668687308,0.69106504,102090.0,102080.0,0.06855555]
[1750668687924,0.49142504,102090.0,102080.0,0.06855555]
[1750668688135,0.69098504,102090.0,102080.0,0.06855555]
[1750668688380,0.39112565,102090.0,102080.0,0.06855555]
[1750668688618,0.59068565,102090.0,102080.0,0.06855555]
[1750668690175,0.59069616,102090.0,102080.0,0.06855555]
[1750668692034,0.21795615,102090.0,102060.0,0.07914132]
[1750668692241,0.22715425,102090.0,102060.0,0.17944071]
[1750668692448,0.4891,102080.0,102060.0,0.17944071]
[1750668692651,0.56992352,102080.0,102060.0,0.17944071]
[1750668693081,0.56992343,102080.0,102060.0,0.17944071]
[1750668693302,0.56992343,102080.0,102060.0,0.18344071]
[1750668693512,0.56992343,102080.0,102060.0,0.17944071]
[1750668693915,0.35150641,102080.0,102060.0,0.18544071]
[1750668694129,0.35150641,102080.0,102060.0,0.18744071]
[1750668694989,0.69150641,102080.0,102070.0,0.0624]
[1750668695662,0.61988099,102080.0,102070.0,0.0624]
[1750668695874,0.61988077,102080.0,102070.0,0.0624]
[1750668696710,0.61988077,102080.0,102070.0,0.0644]
[1750668696910,0.61988077,102080.0,102070.0,0.0664]
[1750668701488,0.61988091,102080.0,102070.0,0.0664]
[1750668701698,0.701821,102080.0,102070.0,0.0664]
[1750668705263,0.701821,102080.0,102030.0,0.0001]
[1750668705264,0.01959314,102070.0,102030.0,0.0001]
[1750668705485,0.19944,102060.0,102040.0,0.10076213]
[1750668705707,0.05033764,102060.0,102040.0,0.10076213]
[1750668705914,0.07716844,102060.0,102040.0,0.10076213]
[1750668706120,0.09552283,102060.0,102040.0,0.10076213]
[1750668706748,0.07716844,102060.0,102040.0,0.10076213]
[1750668707326,0.10663744,102060.0,102040.0,0.10076213]
[1750668707685,0.10763744,102060.0,102040.0,0.10076213]
[1750668708311,0.10763744,102060.0,102050.0,0.0657]
[1750668708868,0.44763744,102060.0,102050.0,0.0657]
[1750668709772,0.44963744,102060.0,102050.0,0.0657]
[1750668709999,0.4404598,102060.0,102050.0,0.0657]
[1750668710258,0.4394598,102060.0,102050.0,0.0657]
[1750668710718,0.4404598,102060.0,102050.0,0.0657]
[1750668710949,0.343,102060.0,102050.0,0.16599939]
[1750668711156,0.343,102060.0,102050.0,0.0657]
[1750668711577,0.343,102060.0,102050.0,0.0328]
[1750668711794,0.343,102060.0,102040.0,0.06386274]
[1750668711795,0.34,102050.0,102040.0,0.06386274]
[1750668711998,0.3743,102050.0,102040.0,0.16416213]
[1750668713148,0.3743,102050.0,102040.0,0.16516213]
[1750668713552,0.40423721,102050.0,102040.0,0.16516213]
[1750668715625,0.06423721,102050.0,102040.0,0.16516213]
[1750668715822,0.02993721,102050.0,102040.0,0.16516213]
[1750668716254,0.3812,102060.0,102040.0,0.16516213]
[1750668717576,0.410669,102060.0,102040.0,0.16416213]
[1750668717772,0.441769,102060.0,102040.0,0.06386274]
[1750668717992,0.472769,102060.0,102040.0,0.06386274]
[1750668718218,0.8039979,102060.0,102040.0,0.06386274]
[1750668718665,0.8059979,102060.0,102040.0,0.06386274]
[1750668719102,0.7448979,102060.0,102040.0,0.06386274]
[1750668720235,0.7448979,102060.0,102050.0,0.001]
[1750668720445,0.9032179,102060.0,102050.0,0.001]
[1750668720597,0.7448979,102060.0,102050.0,0.001]
[1750668721075,0.7438979,102060.0,102050.0,0.001]
[1750668721998,0.7418979,102060.0,102050.0,0.001]
[1750668722209,0.7438979,102060.0,102050.0,0.001]
[1750668722529,0.7448979,102060.0,102050.0,0.001]
[1750668724995,0.7448979,102060.0,102050.0,0.0641]
[1750668725827,0.7948979,102060.0,102050.0,0.0641]
[1750668728052,0.7948979,102060.0,102050.0,0.001]
[1750668730325,0.80407316,102060.0,102050.0,0.001]
[1750668730717,0.80407316,102060.0,102050.0,0.0615]
[1750668732985,0.80407404,102060.0,102050.0,0.0615]
[1750668733601,0.80407404,102060.0,102050.0,0.001]
[1750668734497,0.82761366,102060.0,102050.0,0.001]
[1750668735531,0.81843752,102060.0,102050.0,0.001]
[1750668735738,0.82763162,102060.0,102050.0,0.001]
[1750668736546,0.82763414,102060.0,102050.0,0.001]
[1750668738215,0.82763414,102060.0,102050.0,0.0342]
[1750668738397,0.82763414,102060.0,102050.0,0.0674]
[1750668738613,0.82763405,102060.0,102050.0,0.0674]
[1750668738849,0.79816505,102060.0,102050.0,0.0674]
[1750668741171,0.79812505,102060.0,102050.0,0.0674]
[1750668741571,0.79812418,102060.0,102050.0,0.0674]
[1750668742121,0.77458456,102060.0,102050.0,0.0674]
[1750668742729,0.37403864,102060.0,102050.0,0.0674]
[1750668743439,0.36873451,102060.0,102050.0,0.0674]
[1750668744501,0.36873426,102060.0,102050.0,0.0674]
[1750668747006,0.38712422,102060.0,102050.0,0.0674]
[1750668747352,0.38712433,102060.0,102050.0,0.0674]
[1750668747595,0.4622513,102060.0,102050.0,0.0674]
[1750668750176,0.46225097,102060.0,102050.0,0.0674]
[1750668753118,0.46225013,102060.0,102050.0,0.0674]
[1750668754407,0.34596316,102060.0,102050.0,0.0674]
[1750668755142,0.32757362,102060.0,102050.0,0.0674]
[1750668758804,0.32757241,102060.0,102050.0,0.0674]
[1750668759280,0.32757241,102060.0,102050.0,0.001]
[1750668759281,0.3459589,102060.0,102050.0,0.001]
[1750668760405,0.34595896,102060.0,102050.0,0.001]
[1750668760653,0.42481408,102060.0,102050.0,0.001]
[1750668761865,0.42481628,102060.0,102050.0,0.001]
[1750668762995,0.45428728,102060.0,102050.0,0.001]
[1750668763455,0.43589907,102060.0,102050.0,0.001]
[1750668763684,0.45428779,102060.0,102050.0,0.001]
[1750668764616,0.45428809,102060.0,102050.0,0.001]
[1750668765079,0.22168314,102060.0,102050.0,0.001]
[1750668765769,0.56168314,102060.0,102050.0,0.001]
[1750668767444,0.56168335,102060.0,102050.0,0.001]
[1750668768277,0.53221235,102060.0,102050.0,0.001]
[1750668769156,0.63551235,102060.0,102050.0,0.001]
[1750668769803,0.67659235,102060.0,102050.0,0.001]
[1750668770014,0.68638964,102060.0,102050.0,0.001]
[1750668770219,0.67719554,102060.0,102050.0,0.001]
[1750668770434,0.71949057,102060.0,102050.0,0.001]
[1750668770672,0.72928815,102060.0,102050.0,0.001]
[1750668770877,0.74302909,102060.0,102050.0,0.001]
[1750668771294,0.7001318,102060.0,102050.0,0.001]
[1750668771517,0.67659328,102060.0,102050.0,0.001]
[1750668771945,0.70992741,102060.0,102050.0,0.001]
[1750668772366,0.70013012,102060.0,102050.0,0.001]
[1750668772573,0.70992741,102060.0,102050.0,0.001]
[1750668773228,0.70992798,102060.0,102050.0,0.001]
[1750668774301,0.47351915,102060.0,102040.0,0.00046274]
[1750668774990,0.26154,102050.0,102040.0,0.00046274]
[1750668775198,0.36013952,102050.0,102040.0,0.00046274]
[1750668775622,0.35034127,102050.0,102040.0,0.00046274]
[1750668775873,0.36013961,102050.0,102040.0,0.00046274]
[1750668776077,0.36014054,102050.0,102040.0,0.00046274]
[1750668776502,0.44317369,102060.0,102040.0,0.00146274]
[1750668776736,0.12289659,102050.0,102040.0,0.00146274]
[1750668777207,0.18589659,102050.0,102040.0,0.00146274]